bitfinex/quotes_SOLUSD_20251216
["timestamp","ask_amount","ask_price","bid_price","bid_amount"]
[1765862852127,5.18443118,126.48,126.46,9.33]
[1765862853738,23.87084901,126.49,126.47,5.19443118]
[1765862853942,0.1,126.49,126.48,4.51443118]
[1765862854242,0.1,126.49,126.48,0.68]
[1765862854626,0.1,126.49,126.48,5.19443118]
[1765862855940,0.1,126.49,126.48,13.10081954]
[1765862856720,0.1,126.49,126.48,21.91076446]
[1765862859329,0.1,126.49,126.48,13.10081954]
[1765862860051,0.1,126.49,126.48,8.58638836]
[1765862860847,0.1,126.49,126.48,13.10081954]
[1765862861428,0.1,126.49,126.48,11.47049289]
[1765862863343,0.1,126.49,126.48,8.58638836]
[1765862863835,0.1,126.49,126.48,70.48638836]
[1765862864438,0.1,126.49,126.48,73.37049289]
[1765862865555,0.1,126.49,126.48,82.18043781]
[1765862867844,0.1,126.53,126.49,8.80994492]
[1765862868161,0.76,126.53,126.5,11.54410453]
[1765862868469,0.76,126.53,126.5,12.22410453]
[1765862868670,0.76,126.53,126.51,0.68]
[1765862869658,0.1,126.53,126.52,7.90388871]
[1765862870040,0.1,126.53,126.52,8.58388871]
[1765862874666,0.1,126.53,126.52,7.90388871]
[1765862875055,0.1,126.53,126.52,8.58388871]
[1765862876670,0.1,126.53,126.52,7.90388871]
[1765862876973,0.76,126.53,126.52,7.90388871]
[1765862877156,0.1,126.53,126.52,7.90388871]
[1765862877798,0.1,126.53,126.52,8.58388871]
[1765862880458,0.76,126.53,126.52,7.90388871]
[1765862881177,0.76,126.53,126.51,7.90451347]
[1765862882082,0.76,126.53,126.51,27.66579716]
[1765862882083,0.1,126.53,126.51,27.66579716]
[1765862882284,0.1,126.53,126.51,28.34579716]
[1765862884672,0.1,126.53,126.52,0.69]
[1765862885194,0.1,126.53,126.51,90.25579716]
[1765862885763,0.1,126.53,126.52,0.69]
[1765862886871,0.1,126.53,126.52,8.59388871]
[1765862888781,0.1,126.53,126.52,11.47674946]
[1765862889485,0.1,126.53,126.52,8.59388871]
[1765862889986,0.1,126.53,126.52,11.47674946]
[1765862890182,0.1,126.53,126.52,82.18669438]
[1765862891874,1e-08,126.53,126.52,82.18669438]
[1765862892889,1e-08,126.54,126.52,101.25641616]
[1765862893191,1e-08,126.54,126.53,12.23286075]
[1765862893568,1e-08,126.54,126.53,20.13612479]
[1765862895691,1e-08,126.54,126.53,28.94606971]
[1765862897399,1e-08,126.54,126.53,26.06320896]
[1765862897578,1e-08,126.54,126.53,28.94606971]
[1765862902575,1e-08,126.54,126.53,90.84606971]
[1765862904574,0.71000001,126.54,126.53,16.56326404]
[1765862904970,0.71000001,126.54,126.53,7.90326404]
[1765862905198,0.71000001,126.54,126.53,16.56326404]
[1765862909796,1e-08,126.54,126.53,16.56326404]
[1765862910098,1e-08,126.54,126.53,20.13612479]
[1765862910674,1e-08,126.54,126.53,16.56326404]
[1765862911800,1e-08,126.54,126.53,19.44612479]
[1765862911988,1e-08,126.54,126.53,20.13612479]
[1765862913375,1e-08,126.54,126.53,19.44612479]
[1765862914600,1e-08,126.54,126.53,16.56326404]
[1765862914798,0.65000001,126.54,126.53,16.56326404]
[1765862917606,13.0470912,126.53,126.46,2.88286075]
[1765862917785,2.88286075,126.5,126.47,28.42653636]
[1765862918101,13.0470912,126.51,126.47,8.66]
[1765862918102,2.88286075,126.49,126.47,8.66]
[1765862918483,0.65,126.48,126.47,16.56701352]
[1765862923497,13.0470912,126.51,126.47,16.56701352]
[1765862923699,0.65,126.5,126.48,0.72]
[1765862924005,0.65,126.5,126.47,17.28701352]
[1765862925688,5.15967748,126.5,126.47,17.28701352]
[1765862926291,13.6970912,126.51,126.48,0.72]
[1765862926498,18.20676868,126.51,126.48,0.72]
[1765862926698,18.20676868,126.51,126.49,7.9057633]
[1765862926900,18.20676868,126.51,126.5,8.66]
[1765862927590,4.50967748,126.53,126.5,8.66]
[1765862927787,0.65,126.52,126.5,8.66]
[1765862928817,0.65,126.52,126.5,16.56511392]
[1765862932330,0.65000001,126.54,126.51,0.72]
[1765862932829,0.65000001,126.54,126.51,5.22967748]
[1765862933025,1e-08,126.54,126.51,5.22967748]
[1765862933194,1e-08,126.54,126.52,0.72]
[1765862933398,1e-08,126.54,126.53,13.16967748]
[1765862933923,1e-08,126.54,126.53,21.79294152]
[1765862935834,0.65000001,126.54,126.53,8.66]
[1765862936219,5.15967749,126.54,126.53,8.66]
[1765862937122,0.65000001,126.54,126.53,8.66]
[1765862938839,5.15967749,126.54,126.53,8.66]
[1765862940310,13.06231697,126.54,126.53,8.66]
[1765862940709,8.55263949,126.54,126.53,8.66]
[1765862940910,13.06231697,126.54,126.53,8.66]
[1765862941229,17.56676475,126.54,126.53,8.66]
[1765862941727,17.56676475,126.54,126.5,8.66]
[1765862941932,4.50706263,126.52,126.5,8.66]
[1765862942431,0.7,126.51,126.5,8.66]
[1765862943012,5.20706263,126.51,126.5,8.66]
[1765862943221,13.1115761,126.51,126.5,8.66]
[1765862944127,5.20706263,126.51,126.5,8.66]
[1765862944333,0.7,126.51,126.5,8.66]
[1765862944644,5.20706263,126.51,126.5,8.66]
[1765862950540,16.56408447,126.52,126.5,16.56513833]
[1765862950541,5.20706263,126.52,126.5,16.56513833]
[1765862950938,0.7,126.51,126.5,16.56513833]
[1765862951545,5.20706263,126.51,126.5,8.66]
[1765862953930,0.7,126.51,126.5,8.66]
[1765862954130,5.20706263,126.51,126.5,8.66]
[1765862957753,23.76519982,126.52,126.5,8.66]
[1765862958047,5.20706263,126.52,126.5,8.66]
[1765862959250,5.20706263,126.52,126.5,16.56505806]
[1765862959647,4.50706263,126.53,126.5,16.56505806]
[1765862959947,4.50706263,126.52,126.5,17.22505806]
[1765862960533,5.20706263,126.51,126.5,8.66]
[1765862965635,13.1115761,126.51,126.5,8.66]
[1765862971230,33.53992185,126.51,126.5,8.66]
[1765862973672,33.53992185,126.51,126.46,17.2275258]
[1765862973843,4.50706263,126.48,126.47,0.67]
[1765862974947,4.46706263,126.48,126.47,0.67]
[1765862975146,23.77084901,126.5,126.47,8.57687207]
[1765862975457,13.0470912,126.49,126.48,0.67]
[1765862980365,13.0470912,126.48,126.45,0.67]
[1765862980539,4.50706263,126.46,126.45,9.35]
[1765862981265,4.50706263,126.46,126.45,8.68]
[1765862981559,4.50706263,126.46,126.45,9.35]
[1765862981758,4.50706263,126.47,126.45,17.25826413]
[1765862981959,13.0470912,126.46,126.45,17.25826413]
[1765862982340,4.50706263,126.47,126.45,17.25826413]
[1765862984042,20.48452359,126.48,126.46,0.67]
[1765862984043,19.77452359,126.48,126.46,0.67]
[1765862984260,24.99158622,126.48,126.46,0.67]
[1765862984565,13.0470912,126.46,126.44,0.67]
[1765862984764,13.0470912,126.45,126.44,8.57888959]
[1765862985067,13.0470912,126.45,126.44,17.25888959]
[1765862985644,2.88736448,126.47,126.45,7.9081004]
[1765862985851,23.84103716,126.48,126.45,8.5781004]
[1765862986145,24.55103716,126.48,126.45,8.5781004]
[1765862987070,2.88736448,126.47,126.46,0.67]
[1765862988065,3.59736448,126.47,126.43,0.67]
[1765862988370,13.0470912,126.45,126.44,9.35]
[1765862993350,13.0470912,126.45,126.4,70.90994492]
[1765862993351,11.50569567,126.45,126.4,70.0111901]
[1765862993555,2.88736448,126.42,126.41,8.68]
[1765862994253,11.56736448,126.42,126.41,8.68]
[1765862994869,12.27736448,126.42,126.41,8.68]
[1765862995872,20.18750528,126.42,126.41,8.68]
[1765862996364,39.96285728,126.42,126.4,8.88]
[1765862996559,3.59736448,126.41,126.4,8.88]
[1765862996965,25.52445568,126.41,126.4,8.88]
[1765862998165,33.43522223,126.41,126.4,8.88]
[1765862998960,29.19807595,126.41,126.4,0.2]
[1765863000354,13.0470912,126.38,126.37,0.2]
[1765863000555,15.93445568,126.38,126.37,0.2]
[1765863000757,13.0470912,126.38,126.37,0.87]
[1765863000986,21.9270912,126.38,126.37,0.87]
[1765863001173,25.52445568,126.38,126.37,0.2]
[1765863002377,33.43710008,126.38,126.37,0.2]
[1765863002893,42.247045,126.38,126.37,0.2]
[1765863005425,33.43710008,126.38,126.37,0.2]
[1765863006759,13.0470912,126.35,126.34,0.2]
[1765863006963,24.7444006,126.35,126.31,0.2]
[1765863007267,2.88736448,126.32,126.31,0.2]
[1765863007576,15.93445568,126.32,126.31,0.2]
[1765863007976,33.42336379,126.32,126.31,0.2]
[1765863008179,34.13336379,126.32,126.31,0.2]
[1765863008771,41.33976657,126.32,126.31,0.2]
[1765863008972,42.04976657,126.32,126.31,0.2]
[1765863010502,42.05718172,126.32,126.31,0.2]
[1765863010809,41.34718172,126.32,126.31,0.2]
[1765863011013,41.34718172,126.32,126.31,0.89]
[1765863011212,41.34718172,126.32,126.31,0.2]
[1765863011505,2.89477963,126.34,126.31,0.89]
[1765863011707,2.89477963,126.34,126.31,8.80702953]
[1765863011895,2.89477963,126.34,126.32,0.69]
[1765863012516,2.89477963,126.33,126.31,0.2]
[1765863012816,2.89477963,126.32,126.31,0.89]
[1765863013824,2.89477963,126.32,126.31,0.2]
[1765863014820,11.52118241,126.32,126.31,0.2]
[1765863016592,10.81118241,126.32,126.31,0.2]
[1765863017492,11.52118241,126.32,126.31,0.2]
[1765863018698,10.81118241,126.32,126.31,0.2]
[1765863018914,2.89477963,126.32,126.31,0.89]
[1765863020518,24.82187083,126.33,126.31,0.89]
[1765863020720,2.89477963,126.33,126.32,0.69]
[1765863020888,15.94187083,126.33,126.32,0.69]
[1765863021292,15.94187083,126.33,126.31,0.2]
[1765863021513,2.89477963,126.32,126.31,0.89]
[1765863021892,20.96300752,126.33,126.31,0.89]
[1765863022096,2.89477963,126.32,126.31,0.89]
[1765863022320,20.96300752,126.33,126.31,0.2]
[1765863022521,3.60477963,126.32,126.31,0.2]
[1765863022812,2.89477963,126.32,126.31,0.89]
[1765863023512,15.94187083,126.32,126.31,0.89]
[1765863024895,23.85827361,126.32,126.31,0.2]
[1765863025100,10.81118241,126.32,126.31,0.2]
[1765863025302,34.61409429,126.32,126.31,0.2]
[1765863025519,35.32409429,126.32,126.31,0.2]
[1765863027114,44.13403921,126.32,126.31,0.2]
[1765863027820,35.32409429,126.32,126.31,0.2]
[1765863032636,13.0470912,126.29,126.28,8.88]
[1765863032798,15.94187083,126.29,126.28,8.88]
[1765863033308,24.82187083,126.29,126.28,8.88]
[1765863034840,32.74015414,126.29,126.28,8.88]
[1765863038640,32.74015414,126.29,126.28,9.59]
[1765863040043,32.74015414,126.29,126.28,8.88]
[1765863040946,32.74015414,126.29,126.28,9.59]
[1765863041150,24.82187083,126.29,126.28,9.59]
[1765863045544,26.45161803,126.29,126.28,9.59]
[1765863046149,21.9270912,126.29,126.28,9.59]
[1765863046324,26.45161803,126.29,126.28,9.59]
[1765863047044,17.57161803,126.29,126.28,9.59]
[1765863047245,17.57161803,126.29,126.28,8.88]
[1765863047954,25.48990134,126.29,126.28,8.88]
[1765863048154,26.18990134,126.29,126.28,8.88]
[1765863052928,25.48990134,126.29,126.28,8.88]
[1765863053337,21.66537451,126.29,126.28,8.88]
[1765863053631,26.18990134,126.29,126.28,8.88]
[1765863055741,17.57161803,126.29,126.28,8.88]
[1765863056151,17.57161803,126.29,126.28,9.59]
[1765863058454,17.57161803,126.29,126.28,8.88]
[1765863058645,26.18990134,126.29,126.28,8.88]
[1765863060054,13.0470912,126.29,126.28,9.59]
[1765863060245,17.57161803,126.29,126.28,9.59]
[1765863060569,17.57161803,126.29,126.28,8.88]
[1765863060741,20.96537451,126.29,126.28,8.88]
[1765863061070,26.18990134,126.29,126.28,8.88]
[1765863061271,13.0470912,126.29,126.28,9.59]
[1765863061452,17.57161803,126.29,126.28,9.59]
[1765863061639,25.48990134,126.29,126.28,9.59]
[1765863062233,25.48990134,126.29,126.28,8.88]
[1765863063766,17.57161803,126.29,126.28,9.56]
[1765863066455,13.0470912,126.29,126.28,9.56]
[1765863066670,17.57161803,126.29,126.28,9.56]
[1765863070174,39.58031862,126.33,126.28,17.47891035]
[1765863070175,4.52452683,126.33,126.28,17.47891035]
[1765863070350,18.26161803,126.33,126.29,0.68]
[1765863070545,4.52452683,126.33,126.29,0.68]
[1765863070750,13.69954051,126.35,126.29,5.20452683]
[1765863070751,4.52452683,126.35,126.29,5.20452683]
[1765863070985,4.52452683,126.35,126.3,0.68]
[1765863071387,4.52452683,126.35,126.3,5.20452683]
[1765863071698,4.52452683,126.36,126.31,27.70960335]
[1765863071874,20.96061457,126.37,126.32,8.68]
[1765863072085,4.52452683,126.36,126.32,9.36]
[1765863072252,21.65061457,126.37,126.33,0.68]
[1765863072452,4.52452683,126.36,126.33,0.68]
[1765863073257,4.52452683,126.36,126.33,8.59539927]
[1765863073469,13.0470912,126.35,126.34,0.68]
[1765863074048,17.57161803,126.35,126.33,7.91539927]
[1765863074252,4.52452683,126.35,126.34,0.68]
[1765863074456,13.0470912,126.35,126.34,0.68]
[1765863074760,17.57161803,126.35,126.32,16.59618951]
[1765863074958,17.57161803,126.35,126.33,0.68]
[1765863074959,4.52452683,126.34,126.33,0.68]
[1765863075594,17.57161803,126.35,126.33,0.68]
[1765863075775,17.57161803,126.35,126.33,8.59577118]
[1765863077069,17.57161803,126.35,126.33,0.68]
[1765863078474,17.57161803,126.35,126.33,8.595762]
[1765863079591,17.57161803,126.35,126.34,0.68]
[1765863079786,13.0470912,126.35,126.33,7.915762]
[1765863080000,17.57161803,126.35,126.34,0.68]
[1765863080166,17.57161803,126.35,126.33,8.595762]
[1765863080361,17.57161803,126.35,126.34,0.68]
[1765863080962,17.56654575,126.35,126.34,0.68]
[1765863081180,17.56654575,126.35,126.34,8.59514959]
[1765863081575,17.56654575,126.35,126.34,0.68]
[1765863085303,13.0470912,126.35,126.34,0.68]
[1765863086805,17.56654575,126.35,126.34,0.68]
[1765863088204,13.0470912,126.35,126.34,0.68]
[1765863088502,17.56654575,126.35,126.34,0.68]
[1765863092105,13.12414051,126.35,126.32,8.68]
[1765863092309,4.51945455,126.33,126.32,8.68]
[1765863092484,4.51945455,126.33,126.32,9.37]
[1765863095108,17.56654575,126.33,126.32,8.68]
[1765863095411,18.28654575,126.33,126.32,8.68]
[1765863095584,17.56654575,126.33,126.32,8.68]
[1765863096992,17.56654575,126.33,126.31,0.69]
[1765863097203,4.51945455,126.32,126.31,0.69]
[1765863097402,4.51945455,126.32,126.31,9.37]
[1765863097686,4.51945455,126.32,126.31,0.69]
[1765863097893,4.51945455,126.32,126.31,9.37]
[1765863098095,13.0470912,126.33,126.31,17.28700198]
[1765863098294,4.51945455,126.32,126.31,16.59700198]
[1765863099013,17.56654575,126.33,126.31,17.28700198]
[1765863099221,17.56654575,126.33,126.32,0.69]
[1765863099923,13.0470912,126.33,126.32,0.69]
[1765863100230,12.43400778,126.35,126.32,8.60640278]
[1765863100397,12.43400778,126.35,126.33,0.69]
[1765863101128,12.43400778,126.35,126.32,7.91640278]
[1765863101129,4.51945455,126.34,126.32,7.91640278]
[1765863101329,4.51945455,126.33,126.32,0.69]
[1765863103399,0.72,126.34,126.32,0.69]
[1765863103625,8.63455323,126.35,126.32,0.69]
[1765863103920,5.23945455,126.34,126.32,0.69]
[1765863104098,17.56654575,126.36,126.32,8.60634793]
[1765863104294,17.56654575,126.36,126.32,70.50634793]
[1765863104295,18.28654575,126.36,126.32,70.50634793]
[1765863104499,18.28654575,126.36,126.33,0.69]
[1765863106312,13.7670912,126.36,126.33,8.60560283]
[1765863106623,13.7670912,126.36,126.34,0.69]
[1765863106624,17.56654575,126.35,126.34,0.69]
[1765863107417,15.93939857,126.35,126.33,8.60560283]
[1765863107625,15.93939857,126.35,126.34,0.69]
[1765863107921,16.65939857,126.35,126.33,8.60560283]
[1765863108721,16.65939857,126.35,126.33,0.69]
[1765863108901,3.61230737,126.34,126.32,61.9]
[1765863109223,2.89230737,126.33,126.32,62.59]
[1765863109521,2.89230737,126.33,126.32,0.69]
[1765863111207,3.61230737,126.34,126.32,0.69]
[1765863111925,2.89230737,126.34,126.32,0.69]
[1765863112120,3.61230737,126.34,126.32,0.69]
[1765863113829,11.52746454,126.34,126.32,0.69]
[1765863114014,3.61230737,126.34,126.32,0.69]
[1765863118620,0.72,126.34,126.32,0.69]
[1765863119636,3.61230737,126.34,126.32,0.69]
[1765863120642,24.57422145,126.35,126.32,0.69]
[1765863120833,0.72,126.34,126.32,0.69]
[1765863121017,13.0470912,126.35,126.32,8.60618113]
[1765863121422,13.0470912,126.35,126.33,0.69]
[1765863123534,13.0470912,126.35,126.33,8.60545775]
[1765863124142,13.0470912,126.35,126.34,0.69]
[1765863124518,13.0470912,126.35,126.32,27.70740974]
[1765863124816,13.0470912,126.35,126.34,0.69]
[1765863125853,13.0470912,126.35,126.33,0.69]
[1765863126013,16.65939857,126.35,126.32,70.50640278]
[1765863126213,0.72,126.34,126.32,70.50640278]
[1765863126416,3.61230737,126.34,126.32,61.9]
[1765863126719,3.61230737,126.34,126.32,70.50637185]
[1765863126916,3.61230737,126.34,126.33,0.69]
[1765863126917,13.0470912,126.34,126.33,0.69]
[1765863132647,13.0470912,126.34,126.32,7.91637185]
[1765863133025,13.0470912,126.34,126.32,8.60637185]
[1765863133226,13.0470912,126.34,126.32,7.91637185]
[1765863133523,13.0470912,126.34,126.33,0.69]
[1765863136550,2.89230737,126.36,126.33,8.60577614]
[1765863136724,13.0470912,126.35,126.34,8.68]
[1765863137139,0.72,126.37,126.34,17.28514959]
[1765863137544,2.89230737,126.36,126.34,16.59514959]
[1765863137734,15.93939857,126.36,126.34,16.59514959]
[1765863138064,15.93939857,126.36,126.34,17.28514959]
[1765863138220,13.0470912,126.36,126.34,17.28514959]
[1765863138844,13.7670912,126.36,126.34,17.28514959]
[1765863139047,15.93939857,126.36,126.34,9.37]
[1765863139243,16.65939857,126.36,126.34,9.37]
[1765863146834,13.7670912,126.36,126.34,9.37]
[1765863148562,0.72,126.35,126.34,8.68]
[1765863149039,15.93939857,126.36,126.34,8.68]
[1765863149235,16.65939857,126.36,126.34,9.37]
[1765863149763,16.65911666,126.36,126.34,9.37]
[1765863151963,16.65911666,126.36,126.34,8.68]
[1765863152139,3.54202546,126.35,126.34,8.68]
[1765863152339,13.0470912,126.35,126.34,9.39]
[1765863153365,13.6970912,126.35,126.34,8.68]
[1765863154164,16.58911666,126.35,126.34,8.68]
[1765863157047,24.5036398,126.35,126.34,8.68]
[1765863158655,44.28994767,126.35,126.33,8.68]
[1765863158858,3.54202546,126.34,126.33,8.68]
[1765863159873,11.45717505,126.34,126.33,8.68]
[1765863162856,20.13717505,126.34,126.33,8.68]
[1765863163465,13.0470912,126.31,126.3,9.39]
[1765863164070,13.0470912,126.31,126.3,8.68]
[1765863164071,13.6970912,126.31,126.3,8.68]
[1765863164470,16.58911666,126.31,126.3,8.68]
[1765863164679,24.50614619,126.31,126.3,8.68]
[1765863165061,33.18614619,126.31,126.28,0.2]
[1765863165270,2.89202546,126.29,126.28,0.2]
[1765863165463,0.65,126.3,126.28,0.2]
[1765863165685,2.89202546,126.29,126.28,0.2]
[1765863166177,8.56782005,126.3,126.28,0.2]
[1765863166356,2.89202546,126.29,126.28,0.2]
[1765863169587,4.52384141,126.29,126.28,0.2]
[1765863170383,9.59,126.3,126.28,8.82891035]
[1765863170554,17.57093261,126.31,126.28,8.82891035]
[1765863170758,13.0470912,126.3,126.29,0.71]
[1765863172588,13.0470912,126.3,126.29,8.62828331]
[1765863173386,13.0470912,126.3,126.29,0.71]
[1765863175096,17.57093261,126.3,126.29,0.71]
[1765863175586,13.0470912,126.3,126.29,0.71]
[1765863175973,8.88,126.32,126.29,8.62828331]
[1765863176180,4.52384141,126.33,126.29,8.62828331]
[1765863176493,4.52384141,126.33,126.3,0.71]
[1765863176691,4.52384141,126.33,126.31,8.68]
[1765863176997,13.0470912,126.32,126.31,8.68]
[1765863177181,13.0470912,126.32,126.31,9.39]
[1765863179795,25.48574331,126.35,126.31,17.30702953]
[1765863179995,13.0470912,126.33,126.32,0.71]
[1765863180165,25.10080276,126.36,126.32,0.71]
[1765863180498,13.0470912,126.36,126.32,5.23384141]
[1765863180993,13.08784182,126.36,126.33,0.71]
[1765863181495,5.17384141,126.36,126.33,8.62566958]
[1765863181691,4.52384141,126.36,126.33,8.62566958]
[1765863181871,5.17384141,126.36,126.34,0.71]
[1765863182074,5.17384141,126.36,126.35,8.68]
[1765863182798,21.62064724,126.37,126.35,8.68]
[1765863183104,26.14448865,126.37,126.35,8.68]
[1765863185315,4.52384141,126.36,126.35,8.68]
[1765863187477,5.18384141,126.36,126.35,8.68]
[1765863187717,13.09773821,126.36,126.35,8.68]
[1765863190003,34.82426436,126.37,126.35,8.68]
[1765863190507,0.66,126.36,126.35,8.68]
[1765863190897,21.62042295,126.37,126.35,9.37]
[1765863191099,26.14426436,126.37,126.35,9.37]
[1765863191314,21.62042295,126.37,126.35,9.37]
[1765863191688,26.14426436,126.37,126.35,8.68]
[1765863192011,25.48426436,126.37,126.35,8.68]
[1765863192215,26.14426436,126.37,126.35,8.68]
[1765863192423,13.0470912,126.37,126.36,0.69]
[1765863193020,17.57093261,126.37,126.36,0.69]
[1765863193189,13.0470912,126.37,126.36,0.69]
[1765863193397,13.0470912,126.37,126.35,17.28439003]
[1765863194588,13.0470912,126.37,126.36,0.69]
[1765863196497,7.91220045,126.39,126.36,8.6038968]
[1765863196498,4.52384141,126.39,126.36,8.6038968]
[1765863197026,13.0470912,126.38,126.37,0.69]
[1765863198153,8.57149406,126.4,126.37,8.60327055]
[1765863198154,4.52384141,126.4,126.37,8.60327055]
[1765863198502,13.0470912,126.39,126.38,0.69]
[1765863198799,13.0947194,126.41,126.38,0.69]
[1765863199029,13.0470912,126.39,126.38,0.69]
[1765863199229,13.0470912,126.39,126.38,9.37]
[1765863200004,18.23093261,126.39,126.38,8.68]
[1765863200725,18.23093261,126.39,126.37,8.68]
[1765863201100,18.23093261,126.39,126.37,9.37]
[1765863204100,13.0470912,126.38,126.37,9.37]
[1765863206251,5.18384141,126.4,126.37,17.28327055]
[1765863206556,13.0470912,126.39,126.38,0.69]
[1765863210254,13.7070912,126.39,126.37,8.68]
[1765863210431,18.23093261,126.39,126.37,8.68]
[1765863210631,18.23093261,126.39,126.37,9.37]
[1765863210833,13.7070912,126.39,126.37,9.37]
[1765863211140,13.0470912,126.39,126.37,16.59319285]
[1765863211355,13.0470912,126.39,126.37,17.28319285]
[1765863211663,13.0470912,126.39,126.38,0.69]
[1765863212367,13.0470912,126.39,126.37,17.25319285]
[1765863214063,13.7570912,126.39,126.37,17.25319285]
[1765863216862,0.71,126.38,126.37,8.68]
[1765863217457,18.28093261,126.39,126.37,8.68]
[1765863218366,18.28093261,126.39,126.37,9.34]
[1765863218768,13.7570912,126.39,126.37,8.68]
[1765863218970,18.28093261,126.39,126.37,8.68]
[1765863219145,5.23384141,126.38,126.37,8.68]
[1765863219345,5.227254,126.38,126.37,8.68]
[1765863220066,13.0470912,126.34,126.28,39.79204733]
[1765863220240,13.0470912,126.33,126.32,8.57596912]
[1765863220440,13.0470912,126.33,126.32,17.25596912]
[1765863221368,13.0470912,126.36,126.34,7.91514959]
[1765863221667,13.0470912,126.36,126.35,8.68]
[1765863221668,0.71,126.36,126.35,8.68]
[1765863221845,13.7570912,126.36,126.35,8.68]
[1765863222854,26.188242,126.36,126.35,8.68]
[1765863225667,34.868242,126.36,126.35,8.68]
[1765863226061,34.868242,126.36,126.31,0.66]
[1765863226062,54.652984,126.36,126.32,8.68]
[1765863226256,13.0470912,126.33,126.32,8.68]
[1765863226456,13.0470912,126.32,126.31,7.91700769]
[1765863226660,13.0470912,126.32,126.31,16.59700769]
[1765863227156,13.0470912,126.32,126.31,17.25700769]
[1765863228649,13.0470912,126.32,126.31,9.34]
[1765863232273,7.91531017,126.34,126.31,9.34]
[1765863232475,2.89282147,126.36,126.32,0.66]
[1765863232663,9.34,126.35,126.32,3.55282147]
[1765863232873,3.60282147,126.37,126.33,0.66]
[1765863233189,36.43245158,126.37,126.33,0.66]
[1765863233557,7.91411223,126.36,126.33,0.66]
[1765863233770,8.62411223,126.36,126.33,0.66]
[1765863233980,7.91411223,126.36,126.33,0.66]
[1765863234154,8.62411223,126.36,126.34,0.66]
[1765863234352,8.62411223,126.36,126.34,9.34]
[1765863234353,11.5169337,126.36,126.34,9.34]
[1765863235068,13.0470912,126.35,126.34,8.68]
[1765863235679,13.0470912,126.35,126.34,9.34]
[1765863236192,13.0470912,126.36,126.34,9.34]
[1765863236395,13.0470912,126.35,126.34,9.34]
[1765863239589,13.7570912,126.35,126.32,8.57587073]
[1765863239787,13.7570912,126.35,126.34,8.68]
[1765863241267,21.67161434,126.35,126.34,8.68]
[1765863241471,20.96161434,126.35,126.34,8.68]
[1765863242508,24.55443581,126.35,126.34,8.68]
[1765863243067,44.34074368,126.35,126.31,8.68]
[1765863243312,2.89282147,126.32,126.31,8.68]
[1765863243479,3.59282147,126.32,126.31,8.68]
[1765863244190,35.3101942,126.33,126.31,8.68]
[1765863244693,3.59282147,126.32,126.31,8.68]
[1765863246298,11.50922425,126.32,126.31,8.68]
[1765863247176,13.0470912,126.29,126.28,0.2]
[1765863247499,16.63991267,126.29,126.28,0.2]
[1765863247792,25.51991267,126.29,126.28,0.2]
[1765863249163,33.43819598,126.29,126.28,0.2]
[1765863250771,30.54537451,126.29,126.28,0.2]
[1765863250971,33.43819598,126.29,126.28,0.2]
[1765863256607,24.55819598,126.29,126.28,0.2]
[1765863257096,32.73819598,126.29,126.28,0.2]
[1765863257301,23.85819598,126.29,126.28,0.87]
[1765863257471,23.85819598,126.29,126.28,0.2]
[1765863258187,33.40819598,126.29,126.28,0.2]
[1765863259881,34.10819598,126.29,126.28,0.2]
[1765863261199,33.40819598,126.29,126.28,0.2]
[1765863261500,34.10819598,126.29,126.28,0.2]
[1765863261694,25.48991267,126.29,126.28,0.87]
[1765863261880,15.93991267,126.29,126.28,0.87]
[1765863263081,2.89282147,126.31,126.28,8.78891035]
[1765863263277,13.0470912,126.3,126.29,0.67]
[1765863266476,13.0470912,126.3,126.29,8.58828331]
[1765863267902,10.80947695,126.32,126.29,8.58828331]
[1765863268221,11.50947695,126.32,126.3,0.67]